lending/lending_fUSD_20250408
["ID","MTS","AMOUNT","RATE_DAILY","PERIOD"]
[357479653,1744080641296,-1000.0,0.00021044,2]
[357479655,1744080641305,-200.0,0.00021064,7]
[357479657,1744080641315,-166.66,0.00021415,2]
[357479659,1744080641324,-166.66,0.00021485,2]
[357479661,1744080641334,-1523.89545785,0.00021567,2]
[357479663,1744080641344,-1098.33,0.00021646,2]
[357479665,1744080641353,-420.0,0.0002167,2]
[357479667,1744080641363,-260.71490296,0.000217,2]
[357479669,1744080641372,-506.70172633,0.0002175,2]
[357479671,1744080641382,-150.0,0.00021917,2]
[357479673,1744080641391,-634.09,0.00021918,2]
[357479675,1744080641401,-247.06177683,0.00022,2]
[357479677,1744080641410,-500.0,0.00022,2]
[357479679,1744080641420,-231.57498015,0.0002211,2]
[357479681,1744080641429,-166.66,0.00022111,2]
[357479683,1744080641439,-1139.56513081,0.000225,2]
[357479685,1744080641449,-494.76,0.0002256,2]
[357479687,1744080641458,-503.97184786,0.0002271,2]
[357479689,1744080641467,-998.0,0.000229,8]
[357479691,1744080641476,-291.64034218,0.000229,8]
[357479693,1744080641486,-154.14112671,0.000229,8]
[357479695,1744080641496,-773.0,0.000229,8]
[357479697,1744080641505,-350.0,0.00023,2]
[357479699,1744080641515,-200.0,0.00023,2]
[357479701,1744080641525,-500.0,0.00023178,2]
[357479703,1744080641534,-311.01619237,0.00023199,2]
[357479705,1744080641543,-31653.21154359,0.000232,2]
[357479707,1744080641552,-1523.89545785,0.00023233,2]
[357479709,1744080641561,-150.0,0.00023287,2]
[357479711,1744080641571,-200.0,0.000235,2]
[357479713,1744080641580,-587.0,0.00023599,2]
[357479715,1744080641590,-1000.0,0.00023675,2]
[357479717,1744080641599,-498.41,0.00023836,2]
[357479719,1744080641609,-1098.33,0.00023909,2]
[357479721,1744080641618,-160.76838093,0.00023964,2]
[357479723,1744080641628,-40721.98840187,0.00024,2]
[357479725,1744080641638,-784.16713841,0.0002402,2]
[357479727,1744080641647,-23190.98,0.00024174,2]
[357479729,1744080641657,-793.79,0.00024174,2]
[357479731,1744080641666,-151.63,0.000242,2]
[357479733,1744080641675,-405.95907013,0.0002421,2]
[357479735,1744080641685,-3557.18216938,0.0002421,2]
[357479737,1744080641696,-998.0,0.0002427,8]
[357479739,1744080641705,-773.0,0.0002427,8]
[357479741,1744080641716,-150.0,0.00024657,2]
[357479743,1744080641725,-151.63,0.0002479,2]
[357479745,1744080641734,-1122.36611534,0.00024799,10]
[357479746,1744080641744,-180.65882545,0.000248,2]
[357479748,1744080641753,-209349.29662541,0.000248,3]
[357479751,1744080641767,-448.12608553,0.000248,3]
[357479754,1744080641789,-917.89264726,0.000248,3]
[357479783,1744080642254,-12466.0839861,0.000199,2]
[357479907,1744080643342,-53912.6321139,0.000199,2]
[357479909,1744080643351,-76028.03092349,0.000248,3]
[357479925,1744080643498,-600.0,0.000248,3]
[357479927,1744080643509,-1815.52411331,0.000248,3]
[357479929,1744080643519,-159.06,0.00024829,2]
[357479931,1744080643528,-151.0,0.00024899,2]
[357479933,1744080643537,-1122.36611534,0.00024899,10]
[357479935,1744080643547,-1326.71549491,0.000249,2]
[357480210,1744080646269,-1130.0,0.0002,2]
[357480211,1744080646280,-197.17996294,0.000249,2]
[357480212,1744080646289,-861.12756967,0.00025,2]
[357480213,1744080646299,-785.28095846,0.00025,2]
[357480214,1744080646309,-10000.0,0.00025,2]
[357480215,1744080646319,-400.0,0.00025,2]
[357480216,1744080646329,-280.0,0.000253,10]
[357480218,1744080646339,-1000.0,0.00025452,2]
[357480219,1744080646349,-500.60881908,0.00025552,2]
[357480221,1744080646359,-998.0,0.0002564,8]
[357480223,1744080646369,-773.0,0.0002564,8]
[357480225,1744080646379,-600.0,0.00025699,2]
[357480227,1744080646388,-150.0,0.00026027,2]
[357480229,1744080646398,-1098.33,0.00026173,2]
[357480231,1744080646409,-600.0,0.00026301,2]
[357480233,1744080646419,-392.271798,0.00026301,2]
[357480235,1744080646428,-1000.0,0.00026305,2]
[357480237,1744080646438,-333.38828513,0.00026567,2]
[357480239,1744080646447,-1523.89545785,0.00026567,2]
[357480241,1744080646457,-250.0,0.000266,2]
[357480243,1744080646467,-574.0,0.00026691,2]
[357480245,1744080646477,-1286.0,0.00026691,2]
[357480247,1744080646487,-1348.98399259,0.00026691,2]
[357480250,1744080646499,-695.01600741,0.00026691,2]
[357480252,1744080646509,-1382.385,0.00026691,2]
[357480254,1744080646519,-908.0,0.00026691,2]
[357480255,1744080646529,-1436.0,0.00026691,2]
[357480257,1744080646539,-1277.0,0.00026691,2]
[357480259,1744080646548,-790.0,0.00026691,2]
[357480261,1744080646558,-544.0,0.00026691,2]
[357480263,1744080646568,-1025.759943,0.00026691,2]
[357481855,1744080663902,191.0,0.00029359,30]
[357482275,1744080747504,-157.98384103,0.000198,2]
[357482276,1744080752571,198.09943379,0.00039999,31]
[357482277,1744080763176,1300.0,0.00039999,60]
[357482278,1744080813136,351.12,0.00035671,120]
[357482279,1744080880407,155.0,0.0004,31]
[357482280,1744080998544,2017.984,1.17e-06,2]
[357482281,1744081142947,248.12927614,5e-05,2]
[357482282,1744081289844,156.72,0.0004,45]
[357482283,1744081350722,1481.223,0.0004,30]
[357482286,1744081671822,200.0,0.0004,30]
[357482289,1744081828531,321.86,0.00035671,120]
[357482310,1744081833156,-546.51826429,0.000198,2]
[357482311,1744081833166,-210.49397784,0.000198,2]
[357482312,1744081833176,-43.76775787,0.00019873,2]
[357482313,1744081833200,-494.05418221,0.00019873,2]
[357482314,1744081833210,-500.0,0.00019873,2]
[357482315,1744081833220,-250.0,0.00019886,2]
[357482316,1744081833230,-3569.0719,0.000199,2]
[357482317,1744081833239,-1000.0,0.000199,2]
[357482318,1744081833249,-500.0,0.000199,2]
[357482319,1744081833258,-617.1763,0.000199,2]
[357482320,1744081833267,-28749.80648034,0.000199,2]
[357482491,1744081840533,-6929.69782959,0.000199,2]
[357482508,1744081840692,-1564.34766012,0.000199,2]
[357482520,1744081840799,-840.0899425,0.000199,2]
[357482522,1744081840811,-386.80752081,0.000199,2]
[357482536,1744081840929,-14965.48536664,0.000199,2]
[357482538,1744081840939,-628.3649,0.000199,2]
[357482540,1744081840949,-5000.88260452,0.0002,2]
[357482542,1744081840959,-161.28,0.00020286,2]
[357482544,1744081840969,-160.0,0.00021589,2]
[357482546,1744081840978,-250.0,0.0002186,2]
[357482548,1744081840988,-150.0,0.00021917,2]
[357482550,1744081840998,-263.00000983,0.00022038,2]
[357482552,1744081841008,-150.99,0.00022038,2]
[357482554,1744081841017,-1015.133,0.00023,2]
[357482556,1744081841027,-178.86195724,0.00023,2]
[357482558,1744081841036,-150.0,0.00023287,2]
[357482560,1744081841046,-3912.4342,0.0002335,2]
[357482562,1744081841056,-878.66,0.00023727,2]
[357482564,1744081841066,-415.34,0.00024379,2]
[357482566,1744081841075,-161.54,0.00024384,2]
[357482568,1744081841085,-158.49356673,0.00024657,2]
[357482570,1744081841095,-1000.0,0.00024693,2]
[357482571,1744081841104,-200.0,0.00024732,7]
[357482573,1744081841114,-240.64,0.00024811,2]
[357482575,1744081841124,-1000.0,0.00025352,2]
[357482578,1744081841134,-150.0,0.00025358,2]
[357482580,1744081841144,-250.0,0.0002586,2]
[357482581,1744081841154,-350.2541353,0.0002589,4]
[357482584,1744081841164,-878.66,0.0002599,2]
[357482586,1744081841175,-150.0,0.0002643,2]
[357482589,1744081841185,-150.0,0.0002643,2]
[357482591,1744081841195,-150.0,0.0002643,2]
[357482593,1744081841204,-164.61624919,0.0002643,2]
[357482595,1744081841214,-238.33713096,0.0002643,2]
[357482597,1744081841223,-182.92801337,0.0002643,2]
[357482599,1744081841232,-595.8894,0.00026595,2]
[357482600,1744081841241,-4244.8976,0.00026595,2]
[357482602,1744081841251,-2500.0,0.00026595,2]
[357482604,1744081841261,-155.0,0.000266,2]
[357482606,1744081841271,-500.0,0.00026673,2]
[357482608,1744081841281,-250.0,0.00026691,2]
[357482610,1744081841294,-4579.63852007,0.00026695,2]
[357482613,1744081841306,-468.67334615,0.00026695,2]
[357482639,1744081841536,-3045.81152318,0.00026695,2]
[357482644,1744081841604,-35773.22644984,0.00026695,2]
[357482706,1744081842186,-2697.5791892,0.00026695,2]
[357482709,1744081842199,-1867.34186428,0.00026695,2]
[357482711,1744081842215,-845.06326688,0.00026695,2]
[357482714,1744081842227,-1005.32904095,0.00026695,2]
[357482882,1744081844053,-1120.0,0.00025349,2]
[357482884,1744081844064,-8076.43880493,0.00026695,2]
[357482888,1744081844085,-110987.24043982,0.00026695,2]
[357482890,1744081844095,-20381.2459657,0.00026831,2]
[357482892,1744081844105,-411.36,0.00026849,2]
[357482894,1744081844115,-289.18,0.00026849,2]
[357482896,1744081844126,-995.86685944,0.00027,2]
[357482898,1744081844136,-450.0,0.00027,2]
[357482900,1744081844145,-23900.0,0.0002711,2]
[357482902,1744081844155,-236.0,0.0002736,2]
[357482904,1744081844165,-150.0,0.0002736,2]
[357482906,1744081844175,-159.433,0.0002736,2]
[357482908,1744081844185,-150.2,0.0002736,2]
[357482910,1744081844195,-150.348,0.0002736,2]
[357482912,1744081844205,-2044.0,0.0002736,2]
[357482914,1744081844215,-1286.0,0.0002736,2]
[357482916,1744081844225,-574.0,0.0002736,2]
[357482918,1744081844236,-1326.0,0.0002736,2]
[357482920,1744081844246,-908.0,0.0002736,2]
[357482922,1744081844256,-1436.0,0.0002736,2]
[357482924,1744081844266,-1277.0,0.0002736,2]
[357482926,1744081844276,-790.0,0.0002736,2]
[357482928,1744081844286,-544.0,0.0002736,2]
[357482930,1744081844296,-4141.0,0.0002736,2]
[357482933,1744081844310,-153.023,0.0002736,2]
[357482935,1744081844319,-3957.0,0.0002736,2]
[357482937,1744081844329,-852.0,0.0002736,2]
[357482939,1744081844343,-9843.70622623,0.00027387,3]
[357482941,1744081844354,-754.68,0.00027397,2]
[357482943,1744081844363,-1000.0,0.0002778,2]
[357482945,1744081844373,-1122.36611534,0.00027829,15]
[357482947,1744081844383,-5642.8127493,0.00028,4]
[357482949,1744081844394,-9843.70622623,0.00028244,3]
[357482951,1744081844404,-878.66,0.00028254,2]
[357482953,1744081844414,-454.12902296,0.00028391,2]
[357482955,1744081844424,-301.48855851,0.00028554,2]
[357482957,1744081844434,-754.68,0.00028767,2]
[357482959,1744081844450,-500.0,0.00029,2]
[357482961,1744081844463,-848.0,0.00029691,2]
[357482963,1744081844473,-500.0,0.00029691,2]
[357482965,1744081844484,-500.0,0.00029691,2]
[357482967,1744081844494,-154.55893913,0.00029691,2]
[357482969,1744081844504,-657.0,0.00029691,2]
[357482971,1744081844514,-155.31130534,0.00029691,2]
[357482973,1744081844524,-150.0,0.00029691,2]
[357482975,1744081844534,-301.6186,0.000298,2]
[357482977,1744081844545,-746.3184,0.000298,2]
[357482979,1744081844555,-9843.70622623,0.0002988,3]
[357482981,1744081844565,-9843.70622623,0.0002989,3]
[357482983,1744081844574,-1816.1821,0.000299,2]
[357482985,1744081844584,-14486.7694,0.000299,2]
[357482987,1744081844595,-189.634,0.000299,2]
[357482989,1744081844606,-9843.70622623,0.0002998,3]
[357482992,1744081844616,-454.12902291,0.00029983,2]
[357482994,1744081844626,-228.43239674,0.0002999,2]
[357482996,1744081844635,-9843.70622623,0.0002999,3]
[357482998,1744081844645,-1020.73731806,0.0003,20]
[357483000,1744081844655,-5119.13148433,0.0003,2]
[357483002,1744081844664,-229.2348329,0.0003,10]
[357483004,1744081844674,-10915.0022401,0.0003,2]
[357483006,1744081844683,-14457.54178147,0.0003,2]
[357483008,1744081844693,-754.68,0.00030137,2]
[357483010,1744081844702,-9843.70622623,0.0003034,3]
[357483012,1744081844713,-9843.70622623,0.0003035,3]
[357483014,1744081844727,-150.0,0.0003036,2]
[357483016,1744081844737,-2044.0,0.0003036,2]
[357483018,1744081844747,-1286.0,0.0003036,2]
[357483020,1744081844756,-574.0,0.0003036,2]
[357483022,1744081844766,-1326.0,0.0003036,2]
[357483024,1744081844776,-908.0,0.0003036,2]
[357483026,1744081844786,-1436.0,0.0003036,2]
[357483028,1744081844796,-1277.0,0.0003036,2]
[357483030,1744081844805,-790.0,0.0003036,2]
[357483032,1744081844815,-544.0,0.0003036,2]
[357483034,1744081844825,-4141.0,0.0003036,2]
[357483036,1744081844836,-151.0,0.0003036,2]
[357483038,1744081844846,-3957.0,0.0003036,2]
[357483040,1744081844855,-852.0,0.0003036,2]
[357483043,1744081844875,-200.0,0.00030514,2]
[357483046,1744081844887,-878.66,0.00030518,2]
[357483048,1744081844898,-159.06,0.00030532,2]
[357483050,1744081844908,-279.94513339,0.00030618,2]
[357483052,1744081844919,-1000.0,0.00030867,2]
[357483054,1744081844930,-550.0,0.00031,2]
[357483056,1744081844941,-9843.70622623,0.00031051,3]
[357483058,1744081844952,-848.0,0.00031061,2]
[357483060,1744081844963,-500.0,0.00031061,2]
[357483062,1744081844972,-500.0,0.00031061,2]
[357483064,1744081844983,-657.0,0.00031061,2]
[357483066,1744081844995,-152.0,0.00031498,3]
[357483068,1744081845006,-754.68,0.00031507,2]
[357483071,1744081845018,-454.12902291,0.00031575,2]
[357483073,1744081845028,-152.0,0.00031891,4]
[357483075,1744081845039,-152.0,0.00032284,5]
[357483077,1744081845051,-848.0,0.00032431,2]
[357483079,1744081845062,-998.4094471,0.00032431,2]
[357483081,1744081845077,-500.0,0.00032431,2]
[357483083,1744081845091,-657.0,0.00032431,2]
[357483085,1744081845103,-411.36,0.00032646,2]
[357483087,1744081845113,-289.18,0.00032646,2]
[357483089,1744081845123,-152.0,0.00032677,6]
[357483091,1744081845134,-878.66,0.00032782,2]
[357483093,1744081845145,-754.68,0.00032877,2]
[357483095,1744081845155,-9843.70622623,0.0003299,3]
[357483097,1744081845166,-1500.0,0.00033,2]
[357483099,1744081845176,-600.0,0.00033,2]
[357483101,1744081845187,-152.0,0.00033069,7]
[357483103,1744081845197,-200.0,0.00033151,2]
[357483105,1744081845209,-454.12902291,0.00033166,2]
[357483107,1744081845220,-9843.70622623,0.0003329,3]
[357483110,1744081845230,-9843.70622623,0.0003334,3]
[357483112,1744081845240,-9843.70622623,0.0003335,3]
[357483114,1744081845250,-2044.0,0.0003336,2]
[357483116,1744081845260,-1286.0,0.0003336,2]
[357483118,1744081845270,-574.0,0.0003336,2]
[357483120,1744081845280,-1326.0,0.0003336,2]
[357483122,1744081845291,-908.0,0.0003336,2]
[357483124,1744081845305,-1436.0,0.0003336,2]
[357483126,1744081845315,-1277.0,0.0003336,2]
[357483128,1744081845325,-790.0,0.0003336,2]
[357483130,1744081845337,-544.0,0.0003336,2]
[357483132,1744081845346,-4141.0,0.0003336,2]
[357483134,1744081845356,-151.0,0.0003336,2]
[357483136,1744081845365,-3957.0,0.0003336,2]
[357483138,1744081845376,-852.0,0.0003336,2]
[357483140,1744081845386,-152.0,0.00033462,8]
[357483142,1744081845396,-848.0,0.00033801,2]
[357483145,1744081845410,-500.0,0.00033801,2]
[357483147,1744081845421,-657.0,0.00033801,2]
[357483149,1744081845431,-152.0,0.00033855,9]
[357483151,1744081845441,-1000.0,0.00033954,2]
[357483153,1744081845451,-6847.93618466,0.000342,2]
[357483307,1744081847133,-401.44499011,0.00028349,2]
[357484836,1744081863611,200.0,0.00034199,30]
[357485160,1744081942937,500.0,0.0004,30]
[357485161,1744082199379,26695.95,0.00033174,30]
[357485162,1744082278027,-150.99,0.00019,2]
[357485163,1744082315524,500.0,0.0004,38]
[357485164,1744082324637,500.0,0.0004,40]
[357485165,1744082332491,500.0,0.0004,50]
[357485166,1744082338841,500.0,0.0004,60]
[357485168,1744082458191,-99.01,0.00019,2]
[357485169,1744082458215,-205.14877808,0.00021,2]
[357485170,1744082621765,499.19,0.0004,30]
[357485171,1744082815370,500.0,0.00038356,120]
[357485172,1744082815441,500.0,0.0003863,120]
[357485173,1744082815513,500.0,0.00038904,120]
[357485174,1744082815584,500.0,0.00039178,120]
[357485175,1744082815816,500.0,0.00039452,120]
[357485176,1744082816045,500.0,0.00039726,120]
[357485177,1744082816283,554.23011417,0.0004,120]
[357485180,1744082882391,52447.40845143,0.00015,2]
[357485181,1744082911072,295.03,0.00035671,120]
[357485182,1744082918144,1552.44721004,0.000149,2]
[357485197,1744083031516,-450.037073,0.000153,2]
[357485198,1744083031736,-570.26325195,0.000153,2]
[357485199,1744083031746,-1668.49577912,0.000154,2]
[357485918,1744083043461,-1752.46341922,0.000154,2]
[357485920,1744083043472,-150.26380948,0.000154,2]
[357485922,1744083043483,-300.0,0.00015999,2]
[357485924,1744083043493,-1736.71787702,0.00016,2]
[357485926,1744083043504,-200.0,0.0001634,2]
[357485928,1744083043515,-300.0,0.00017492,2]
[357485930,1744083043526,-464.13991662,0.00018,2]
[357485933,1744083043536,-1455.215503,0.00019203,2]
[357485935,1744083043547,-200.0,0.000193,7]
[357485937,1744083043558,-500.0,0.000194,7]
[357485939,1744083043569,-800.0,0.000195,7]
[357485941,1744083043579,-1100.0,0.000196,7]
[357485943,1744083043589,-1300.0,0.000197,7]
[357485945,1744083043599,-200.0,0.000198,7]
[357485947,1744083043610,-576.0354,0.000199,2]
[357485949,1744083043620,-200.0,0.000199,7]
[357485952,1744083043631,-2500.0,0.000199,2]
[357485954,1744083043644,-12495.5156,0.000199,2]
[357485956,1744083043655,-1000.0,0.000199,2]
[357485958,1744083043666,-500.0,0.00019973,2]
[357485960,1744083043679,-500.0,0.00019973,2]
[357485962,1744083043690,-617.18404239,0.00019999,2]
[357485964,1744083043702,-41603.80175074,0.0002,2]
[357486163,1744083045795,-32605.07182595,0.0002,2]
[357487853,1744083105354,7221.56210507,0.000389,120]
[357487854,1744083135715,150.0,0.0004,30]
[357487855,1744083146259,2000.0,0.0004,120]
[357487856,1744083146424,2000.0,0.0004,120]
[357487857,1744083146702,1060.243653,0.0004,120]
[357487858,1744083165461,11182.2162512,0.000389,120]
[357487859,1744083172421,250.0,0.0004,30]
[357487860,1744083190809,301.97248934,0.0004,30]
[357487861,1744083209769,274.67078102,0.0004,30]
[357487862,1744083238059,1029.67154178,0.00038356,30]
[357487873,1744083539297,242.3,0.0004,30]
[357487877,1744083955652,261.13428261,0.0004,30]
[357487878,1744084104673,270.44,0.00035671,120]
[357487896,1744084231644,-250.0,0.00019,2]
[357487898,1744084231654,-22.80967872,0.00019082,2]
[357487903,1744084231700,-138.47032128,0.00019082,2]
[357487904,1744084231711,-250.0,0.00019491,2]
[357487905,1744084231720,-208.21056497,0.000198,2]
[357487906,1744084231730,-398.63783443,0.000198,2]
[357487907,1744084231739,-150.0,0.00019863,2]
[357487908,1744084231749,-1000.0,0.000199,2]
[357487909,1744084231758,-166.77649458,0.000199,2]
[357487910,1744084231768,-187.1621684,0.000199,2]
[357487911,1744084231778,-1520.4005,0.000199,2]
[357487912,1744084231787,-2724.77413746,0.000199,2]
[357487913,1744084231796,-1255.66797888,0.000199,2]
[357487914,1744084231808,-636.10140926,0.000199,2]
[357487915,1744084231834,-608.23061186,0.000199,2]
[357487916,1744084231843,-477.73434194,0.000199,2]
[357487917,1744084231855,-1201.26257294,0.000199,2]
[357487918,1744084231866,-8988.27129007,0.000199,2]
[357487919,1744084231875,-160.76838093,0.000199,2]
[357487920,1744084231884,-470.98618364,0.000199,2]
[357487921,1744084231893,-4001.1755,0.000199,2]
[357487922,1744084231903,-4432.78510486,0.000199,2]
[357487923,1744084231912,-502.39296452,0.00019973,2]
[357487924,1744084231921,-500.0,0.00019973,2]
[357487925,1744084231930,-300.0,0.00019999,2]
[357487926,1744084231939,-1122.36611534,0.00019999,5]
[357487927,1744084231949,-193011.21639771,0.0002,2]
[357488087,1744084237750,-452.64,0.0002,2]
[357488088,1744084237864,-9247.16874785,0.0002,2]
[357488089,1744084237931,-1421.91293233,0.0002,2]
[357488090,1744084237943,-867.00299893,0.0002,2]
[357488091,1744084237955,-4891.75415988,0.0002,2]
[357488092,1744084237987,-3131.26390653,0.0002,2]
[357488093,1744084237999,-2446.27148904,0.0002,2]
[357488094,1744084238052,-93817.02004423,0.0002,2]
[357488095,1744084238108,-1463.88406368,0.0002,2]
[357488267,1744084239918,-27817.57147317,0.0002,2]
[357488272,1744084239959,-723.21934277,0.0002,2]
[357488333,1744084240738,-0.05124814,0.0002,2]
[357488346,1744084240857,-500.0,0.0002,2]
[357488387,1744084241297,-288.07999384,0.0002,2]
[357488389,1744084241310,-889.375035,0.0002,2]
[357488391,1744084241322,-1285.09837437,0.0002,2]
[357488393,1744084241333,-487.89012847,0.0002,2]
[357488398,1744084241370,-4587059.62261509,0.0002,2]
[357488400,1744084241386,-496.29121978,0.0002,2]
[357488403,1744084241398,-2058.95800705,0.0002,2]
[357488406,1744084241427,-22353.79882893,0.0002,2]
[357488409,1744084241439,-448.67857483,0.0002,2]
[357488411,1744084241451,-3094.86716903,0.0002,2]
[357488413,1744084241463,-516.86075677,0.0002,2]
[357488415,1744084241474,-1414.5329418,0.0002,2]
[357488673,1744084245738,-525.0000125,0.0002,2]
[357488674,1744084245749,-438.10696062,0.0002,2]
[357488675,1744084245902,-3675.41195589,0.0002,2]
[357488676,1744084246014,-1747.8709661,0.0002,2]
[357488696,1744084327667,207.045034,7.945e-05,2]
[357488697,1744084388133,335.895803,7.945e-05,2]
[357488699,1744084702147,617.0,0.0004,30]
[357488701,1744084719919,35463.65802571,0.0001499,2]
[357488703,1744084775718,1000.0,0.0004,30]
[357488713,1744084893373,5539.02275913,0.0004,30]
[357488714,1744085016753,172.91020495,0.00038,120]
[357488715,1744085020193,172.91020495,0.0004,120]
[357488716,1744085132730,585.0,0.0004,30]
[357488717,1744085146900,49935.80755456,0.0004,120]
[357488721,1744085225974,1800.0,0.0004,41]
[357488724,1744085431954,-833.32,0.00018246,2]
[357488725,1744085431966,-1000.0,0.00019,2]
[357488726,1744085431978,-418.21279245,0.00019472,2]
[357488727,1744085431990,-517.891,0.00019573,2]
[357488728,1744085432003,-23900.0,0.00019673,2]
[357488729,1744085432015,-200.0,0.00019737,2]
[357488730,1744085432027,-200.0,0.00019756,2]
[357488731,1744085432039,-5174.21,0.00019768,2]
[357488732,1744085432051,-418.21279246,0.00019837,2]
[357488733,1744085432063,-174.35031023,0.00019899,2]
[357488734,1744085432074,-36045.8581,0.000199,2]
[357488735,1744085432086,-1261.0525,0.000199,2]
[357488736,1744085432099,-2445.4761,0.000199,2]
[357488737,1744085432110,-1000.0,0.000199,2]
[357488738,1744085432123,-187.16216839,0.000199,2]
[357488739,1744085432134,-1219.0,0.000199,2]
[357488740,1744085432146,-1000.0,0.000199,2]
[357488741,1744085432157,-179.24740106,0.000199,2]
[357488742,1744085432168,-2500.0,0.000199,2]
[357488743,1744085432180,-161.94012574,0.000199,2]
[357488744,1744085432192,-10776.81658899,0.000199,2]
[357488745,1744085432205,-411.47377984,0.000199,2]
[357488746,1744085432218,-164.5982992,0.000199,2]
[357488747,1744085432229,-160.13618404,0.000199,2]
[357488748,1744085432240,-3089.50644592,0.000199,2]
[357488749,1744085432251,-173.0,0.00019973,2]
[357488750,1744085432262,-16954.25208944,0.00019973,2]
[357488751,1744085432280,-517.891,0.00019973,2]
[357488772,1744085432921,-7827.85691056,0.00019973,2]
[357488773,1744085432947,-500.0,0.00019973,2]
[357488774,1744085432968,-1000.0,0.0001999,2]
[357488775,1744085432978,-1000.0,0.0001999,2]
[357488776,1744085432987,-26039.32483418,0.00019996,2]
[357488777,1744085432999,-4170.12715053,0.00019996,2]
[357488778,1744085433042,-1537.47542561,0.00019996,2]
[357488779,1744085433055,-3122.2533,0.00019996,2]
[357488780,1744085433066,-1285.81203053,0.00019996,2]
[357488781,1744085433078,-4193.60662579,0.00019996,2]
[357488782,1744085433091,-2609.49592439,0.00019996,2]
[357488783,1744085433103,-10402.38722552,0.00019996,2]
[357488784,1744085433141,-43010.79713,0.00019996,2]
[357488788,1744085437823,-2500.0,0.00019896,2]
[357488789,1744085437833,-13946.63409866,0.00019996,2]
[357488790,1744085437882,-24006.64119689,0.00019996,2]
[357488791,1744085437891,-14494.04274196,0.00019996,2]
[357488792,1744085438088,-1771.25319966,0.00019996,2]
[357488965,1744085440070,-415.405,0.00019996,2]
[357488975,1744085440247,-1627.73835754,0.00019996,2]
[357488996,1744085440448,-3844.24104844,0.00019996,2]
[357488998,1744085440460,-18978.9772904,0.00019996,2]
[357489000,1744085440470,-516.2328977,0.00019996,2]
[357489002,1744085440480,-9240.9790067,0.00019996,2]
[357489004,1744085440490,-1003.66450319,0.00019999,2]
[357489006,1744085440500,-300.0,0.00019999,2]
[357489008,1744085440510,-1001.1354,0.00019999,2]
[357489010,1744085440520,-45388.22235799,0.0002,2]
[357489313,1744085443487,-967.66722004,0.0002,2]
[357489543,1744085445917,-31820.96594265,0.0002,2]
[357489546,1744085445931,-13460.85795926,0.0002,2]
[357489578,1744085446233,-259.43931699,0.0002,2]
[357491188,1744085485637,247.9,0.00035671,120]
[357491190,1744085585322,197.92025876,0.000372,103]
[357491191,1744085590324,197.92025876,0.00039352,116]
[357491192,1744085653109,-157.98384103,0.00017046,2]
[357491200,1744085812318,203436.7458891,0.0004,120]
[357491206,1744086012516,-150.99,0.00016946,2]
[357491218,1744086187111,-3.71971731,0.00016946,2]
[357491219,1744086187134,-201.42906077,0.00017046,2]
[357491220,1744086320097,377.16497519,9e-05,2]
[357491221,1744086327884,532.12277385,0.00011,2]
[357491225,1744086355375,2618.76237237,6.94e-05,2]
[357491227,1744086387283,200.28,0.00033,120]
[357491229,1744086476728,666.73598549,0.0001,2]
[357491232,1744086481026,183223.22496114,0.00015,2]
[357491247,1744086631989,-613.63950816,0.00017046,2]
[357491251,1744086632103,-1860.93143107,0.00017046,2]